bitfinex-derivatives/quotes_BTCF0:USTF0_20210708
["timestamp","ask_amount","ask_price","bid_price","bid_amount"]
[1625763271647,0.24057544,32844.0,32840.0,0.76330088]
[1625763272394,0.32985717,32844.0,32840.0,0.76330088]
[1625763272843,0.24057544,32844.0,32840.0,0.76330088]
[1625763274122,0.26765615,32846.0,32840.0,0.76330088]
[1625763274347,0.17837803,32846.0,32845.0,4.1494]
[1625763274498,0.26780466,32847.0,32845.0,4.1494]
[1625763274947,0.08932765,32847.0,32845.0,4.1494]
[1625763275248,0.26779453,32848.0,32845.0,4.1494]
[1625763275547,0.26779453,32848.0,32847.0,0.72172632]
[1625763275698,0.26779453,32848.0,32847.0,0.94495632]
[1625763276376,0.53556268,32848.0,32847.0,0.94495632]
[1625763276526,0.17858959,32848.0,32847.0,0.94495632]
[1625763277129,0.53541875,32848.0,32847.0,0.94495632]
[1625763278481,0.17854957,32848.0,32847.0,0.94495632]
[1625763278784,1.25014328,32848.0,32847.0,0.94495632]
[1625763280360,2.32282568,32848.0,32847.0,0.94495632]
[1625763281034,2.32282568,32848.0,32847.0,0.72172632]
[1625763282082,3.57382555,32848.0,32847.0,0.72172632]
[1625763282309,2.32282568,32848.0,32847.0,0.72172632]
[1625763283883,2.32282568,32848.0,32847.0,0.48132632]
[1625763284076,2.65032568,32848.0,32840.0,1.22987544]
[1625763284203,0.26834007,32842.0,32840.0,1.22987544]
[1625763284483,0.26834978,32841.0,32840.0,1.22987544]
[1625763284633,0.49998978,32841.0,32840.0,1.22987544]
[1625763284787,1.48273441,32841.0,32840.0,1.22987544]
[1625763284933,2.55486896,32841.0,32840.0,1.22987544]
[1625763285536,2.7954444,32841.0,32840.0,1.22987544]
[1625763286134,1.72330985,32841.0,32840.0,1.22987544]
[1625763286885,2.79535991,32841.0,32840.0,1.22987544]
[1625763288688,4.04608874,32841.0,32840.0,1.22987544]
[1625763288912,5.4754789,32841.0,32840.0,1.22987544]
[1625763289138,4.04608874,32841.0,32840.0,1.22987544]
[1625763289669,5.47548369,32841.0,32840.0,1.22987544]
[1625763290117,4.04608874,32841.0,32840.0,1.22987544]
[1625763290720,5.4754612,32841.0,32840.0,1.22987544]
[1625763291166,4.04608874,32841.0,32840.0,1.22987544]
[1625763291916,2.79535991,32841.0,32840.0,1.22987544]
[1625763292667,4.04595746,32841.0,32840.0,1.22987544]
[1625763294471,2.79535991,32841.0,32840.0,1.22987544]
[1625763295821,4.04589451,32841.0,32840.0,1.22987544]
[1625763297099,5.47517539,32841.0,32840.0,1.22987544]
[1625763297623,5.47517539,32841.0,32840.0,0.9893]
[1625763301387,4.04589451,32841.0,32840.0,0.9893]
[1625763301684,2.79535991,32841.0,32840.0,0.9893]
[1625763302133,1.72330985,32841.0,32840.0,0.9893]
[1625763302887,2.79503493,32841.0,32840.0,0.9893]
[1625763303185,1.72330985,32841.0,32840.0,0.9893]
[1625763303935,2.79509092,32841.0,32840.0,0.9893]
[1625763304087,4.04551589,32841.0,32840.0,0.9893]
[1625763306263,5.47544089,32841.0,32840.0,0.9893]
[1625763307040,4.04551589,32841.0,32840.0,0.9893]
[1625763307392,2.79509092,32841.0,32840.0,0.9893]
[1625763307991,4.04661367,32841.0,32840.0,0.9893]
[1625763308818,5.47775543,32841.0,32840.0,0.9893]
[1625763309043,4.04661367,32841.0,32840.0,0.9893]
[1625763309941,3.57439823,32841.0,32840.0,0.9893]
[1625763310094,0.26862658,32841.0,32840.0,0.9893]
[1625763310241,0.08960181,32841.0,32840.0,0.9893]
[1625763310542,2.32668659,32841.0,32840.0,0.9893]
[1625763312267,3.57956399,32841.0,32840.0,0.9893]
[1625763312419,2.32668659,32841.0,32840.0,1.34159]
[1625763312753,1.25290006,32841.0,32840.0,1.34159]
[1625763313514,0.17918884,32841.0,32840.0,1.60171727]
[1625763313773,1.25350951,32841.0,32840.0,1.34159]
[1625763314749,2.32822316,32841.0,32840.0,1.34159]
[1625763315049,1.25350951,32841.0,32840.0,1.34159]
[1625763315951,0.53724394,32841.0,32840.0,1.60212213]
[1625763316180,0.26895995,32841.0,32840.0,1.86251248]
[1625763316478,0.26893318,32843.0,32840.0,3.59767748]
[1625763316781,0.26893318,32843.0,32842.0,1.21532217]
[1625763317230,0.1792291,32843.0,32842.0,0.52085236]
[1625763317829,0.1792291,32843.0,32842.0,0.7614278]
[1625763318130,0.26895771,32843.0,32842.0,0.7614278]
[1625763318436,0.53771061,32843.0,32842.0,1.45618331]
[1625763318730,1.25462262,32843.0,32842.0,0.50119911]
[1625763319334,2.3299433,32843.0,32842.0,0.24057544]
[1625763319709,3.58447988,32843.0,32842.0,0.24057544]
[1625763320610,5.01916775,32843.0,32842.0,0.24057544]
[1625763321510,3.58447988,32843.0,32842.0,0.24057544]
[1625763321963,5.30432693,32843.0,32842.0,0.24057544]
[1625763322635,6.91955791,32843.0,32842.0,0.24057544]
[1625763323586,6.91955791,32843.0,32840.0,0.9893]
[1625763323858,0.48115088,32841.0,32840.0,0.9893]
[1625763323989,7.12299262,32841.0,32840.0,0.9893]
[1625763324291,7.21379262,32841.0,32840.0,0.9893]
[1625763324764,7.12299262,32841.0,32840.0,0.9893]
[1625763324901,8.91846579,32841.0,32840.0,0.9893]
[1625763327447,7.12299262,32841.0,32840.0,0.9893]
[1625763328797,5.50749196,32841.0,32840.0,0.9893]
[1625763329278,5.50749196,32841.0,32840.0,5.7793]
[1625763329410,5.50749196,32841.0,32840.0,5.86658134]
[1625763329701,4.07147143,32841.0,32840.0,5.95384626]
[1625763329848,3.83089599,32841.0,32840.0,6.78407772]
[1625763330373,2.57435559,32841.0,32840.0,7.48219644]
[1625763330675,2.57435559,32841.0,32840.0,8.5294341]
[1625763331050,1.49729532,32841.0,32840.0,8.5294341]
[1625763331501,1.25671988,32841.0,32840.0,8.5294341]
[1625763331801,0.26943844,32841.0,32840.0,9.75026396]
[1625763331951,0.08987261,32841.0,32840.0,9.75026396]
[1625763332853,0.26942245,32842.0,32840.0,11.14483187]
[1625763333152,0.26942245,32842.0,32841.0,3.48751871]
[1625763333455,0.53828321,32842.0,32841.0,2.26688716]
[1625763333603,1.25593212,32842.0,32841.0,2.26688716]
[1625763334658,2.33232334,32842.0,32841.0,1.22063155]
[1625763335110,1.25593212,32842.0,32841.0,2.2668708]
[1625763335410,0.53828321,32842.0,32841.0,2.2668708]
[1625763335633,1.2559313,32842.0,32841.0,2.2668708]
[1625763337134,2.33239733,32842.0,32841.0,2.2668708]
[1625763337512,1.2559313,32842.0,32841.0,2.2668708]
[1625763337811,0.53828321,32842.0,32841.0,2.2668708]
[1625763338042,1.25596621,32842.0,32841.0,2.2668708]
[1625763339012,0.53828321,32842.0,32841.0,3.486511]
[1625763340741,1.2560081,32842.0,32841.0,2.2668708]
[1625763340890,2.33254047,32842.0,32841.0,2.2668708]
[1625763341118,1.2560081,32842.0,32841.0,2.2668708]
[1625763342169,2.33252769,32842.0,32841.0,2.2668708]
[1625763342322,1.2560081,32842.0,32841.0,2.2668708]
[1625763342546,2.33257833,32842.0,32841.0,2.2668708]
[1625763342696,2.33257833,32842.0,32841.0,1.22063155]
[1625763343595,2.33257833,32842.0,32841.0,2.26561814]
[1625763344196,1.2560081,32842.0,32841.0,2.26561814]
[1625763347274,2.33239383,32842.0,32841.0,1.22063155]
[1625763347798,3.58822552,32842.0,32841.0,0.61033571]
[1625763348099,5.02354942,32842.0,32840.0,1.73213341]
[1625763348250,3.58858941,32841.0,32840.0,1.73213341]
[1625763348399,3.85795941,32841.0,32840.0,1.73213341]
[1625763348550,3.85795941,32841.0,32840.0,1.55767839]
[1625763348774,5.29330856,32841.0,32840.0,1.47045088]
[1625763349298,3.85795941,32841.0,32840.0,1.73219171]
[1625763349448,3.85795941,32841.0,32840.0,1.99380971]
[1625763349449,3.58858941,32841.0,32840.0,1.99380971]
[1625763349747,2.33265487,32841.0,32840.0,1.9936328]
[1625763350197,2.33265487,32841.0,32840.0,2.69119676]
[1625763350498,2.33265487,32841.0,32840.0,1.9936328]
[1625763350649,2.33265487,32841.0,32840.0,6.63907542]
[1625763351928,2.33265487,32841.0,32840.0,2.69127542]
[1625763352080,2.57323031,32841.0,32840.0,2.69127542]
[1625763352226,5.2648129,32841.0,32840.0,1.47045088]
[1625763352677,3.82931415,32841.0,32840.0,2.08104087]
[1625763352975,3.82931415,32841.0,32840.0,2.34265199]
[1625763353126,3.82931415,32841.0,32840.0,1.99380292]
[1625763353653,3.82931415,32841.0,32840.0,2.51717157]
[1625763353952,2.33265487,32841.0,32840.0,2.69149884]
[1625763354402,2.33265487,32841.0,32840.0,3.7375911]
[1625763354706,1.25611393,32841.0,32840.0,3.7375911]
[1625763357631,2.33274243,32841.0,32840.0,2.69149884]
[1625763358082,3.58890979,32841.0,32840.0,2.08272009]
[1625763358682,5.02465572,32841.0,32840.0,1.55791791]
[1625763358831,5.02465572,32841.0,32840.0,1.47045088]
[1625763359133,5.02465572,32841.0,32840.0,1.55791568]
[1625763359283,5.02465572,32841.0,32840.0,1.79413568]
[1625763359433,2.33274243,32841.0,32840.0,2.9299287]
[1625763359733,2.33274243,32841.0,32840.0,3.97658537]
[1625763360183,2.33274243,32841.0,32840.0,2.9299287]
[1625763360333,2.33274243,32841.0,32840.0,3.97517645]
[1625763360945,3.58904764,32841.0,32840.0,2.23092423]
[1625763361085,5.02484588,32841.0,32840.0,1.55765034]
[1625763361307,5.02484588,32841.0,32840.0,1.47045088]
[1625763361609,3.58904764,32841.0,32840.0,2.08059893]
[1625763361758,5.02487704,32841.0,32840.0,1.7319429]
[1625763362285,3.58904764,32841.0,32840.0,2.33970307]
[1625763362584,2.33274243,32841.0,32840.0,2.68709605]
[1625763363258,2.33274243,32841.0,32840.0,3.72922243]
[1625763363484,2.33274243,32841.0,32840.0,2.68709605]
[1625763364461,2.33274243,32841.0,32840.0,3.72927236]
[1625763368750,0.33054243,32841.0,32840.0,3.72927236]
[1625763368934,1.61560952,32848.0,32840.0,3.22927236]
[1625763369063,0.08991327,32845.0,32841.0,1.5]
[1625763369195,0.08990608,32849.0,32844.0,3.45632356]
[1625763369345,0.08990608,32849.0,32844.0,3.95632356]
[1625763369496,0.26953585,32850.0,32848.0,1.89940655]
[1625763369645,0.26953585,32850.0,32848.0,0.34621]
[1625763369646,0.08990212,32849.0,32848.0,0.34621]
[1625763369945,0.62859988,32850.0,32848.0,2.24537531]
[1625763370096,0.62859988,32850.0,32849.0,0.72172632]
[1625763370245,0.62859988,32850.0,32849.0,7.52099727]
[1625763370621,0.08989705,32850.0,32849.0,7.52099727]
[1625763370923,0.26941725,32850.0,32849.0,7.52099727]
[1625763371375,1.11383159,32860.0,32849.0,7.52099727]
[1625763371755,1.79336731,32871.0,32849.0,6.62212632]
[1625763371823,1.79336731,32871.0,32850.0,0.557]
[1625763371974,1.79311546,32876.0,32854.0,1.0]
[1625763372122,0.057,32878.0,32854.0,1.0]
[1625763372123,2.09052405,32878.0,32875.0,0.48115088]
[1625763372275,4.3431,32876.0,32875.0,0.50503544]
[1625763374224,4.3431,32876.0,32875.0,0.26446]
[1625763374225,4.58367544,32876.0,32875.0,0.26446]
[1625763375278,4.58367544,32876.0,32871.0,0.24057544]
[1625763376183,0.24057544,32872.0,32871.0,0.24057544]
[1625763393903,1.48848299,32872.0,32871.0,0.24057544]
[1625763394493,0.24057544,32872.0,32871.0,0.24057544]
[1625763399446,1.3096341,32872.0,32871.0,0.24057544]
[1625763402450,0.24057544,32872.0,32871.0,0.24057544]
[1625763405382,0.24057544,32872.0,32871.0,0.19947544]
[1625763406736,0.52263544,32872.0,32871.0,0.19947544]
[1625763406901,0.52263544,32872.0,32868.0,0.24057544]
[1625763407187,1.06896973,32871.0,32868.0,0.24057544]
[1625763407337,1.06897635,32870.0,32868.0,0.24057544]
[1625763408354,0.24057544,32869.0,32868.0,0.24057544]
[1625763408774,0.24057544,32869.0,32868.0,3.97507544]
[1625763415296,0.24057544,32869.0,32868.0,0.24057544]
[1625763417247,0.59202544,32869.0,32868.0,0.24057544]
[1625763417624,1.66280848,32869.0,32868.0,0.24057544]
[1625763417817,2.91208803,32869.0,32868.0,0.24057544]
[1625763418600,4.3406712,32869.0,32868.0,0.24057544]
[1625763423705,4.3406712,32869.0,32868.0,0.45669544]
[1625763424005,2.91208803,32869.0,32868.0,0.45669544]
[1625763424153,2.91208803,32869.0,32868.0,4.61689544]
[1625763424304,0.59202544,32869.0,32868.0,4.61689544]
[1625763424454,0.24057544,32869.0,32868.0,4.61689544]
[1625763424604,1.31440925,32869.0,32868.0,4.61689544]
[1625763425728,1.07383381,32869.0,32868.0,4.61689544]
[1625763426330,1.07388733,32870.0,32868.0,4.61689544]
[1625763426631,1.07514842,32869.0,32868.0,4.61689544]
[1625763428438,2.33183742,32869.0,32868.0,5.65119152]
[1625763428746,2.33183742,32869.0,32868.0,4.61689544]
[1625763428890,2.33183742,32869.0,32868.0,5.65110686]
[1625763430011,2.33183742,32869.0,32868.0,1.49090686]
[1625763430162,4.10872937,32869.0,32868.0,0.24057544]
[1625763431517,4.82757974,32869.0,32868.0,0.93152106]
[1625763431965,4.82757974,32869.0,32868.0,1.9674126]
[1625763432269,4.82757974,32869.0,32868.0,0.24057544]
[1625763432417,6.44485833,32869.0,32868.0,0.24057544]
[1625763432718,4.82757974,32869.0,32868.0,0.24057544]
[1625763432944,4.82757974,32869.0,32868.0,0.93148236]
[1625763434070,4.82757974,32869.0,32868.0,1.96760429]
[1625763434219,4.82757974,32869.0,32868.0,2.28889429]
[1625763435117,3.39137779,32869.0,32868.0,2.28889429]
[1625763435268,4.48802923,32869.0,32868.0,2.28889429]
[1625763435568,3.05068779,32869.0,32868.0,2.28889429]
[1625763435796,4.48797476,32869.0,32868.0,2.28889429]
[1625763436019,3.05068779,32869.0,32868.0,2.28889429]
[1625763436467,4.48800429,32869.0,32868.0,2.28889429]
[1625763437670,3.05068779,32869.0,32868.0,3.4959189]
[1625763437894,3.05068779,32869.0,32868.0,2.28889429]
[1625763438044,3.05068779,32869.0,32868.0,3.49568973]
[1625763439772,3.05068779,32869.0,32868.0,2.28889429]
[1625763440224,3.05068779,32869.0,32868.0,3.49482472]
[1625763440446,3.05068779,32869.0,32868.0,2.28889429]
[1625763440988,4.48792541,32869.0,32868.0,1.96760429]
[1625763441898,3.05068779,32869.0,32868.0,1.96760429]
[1625763442056,3.05068779,32869.0,32868.0,3.17341391]
[1625763442791,1.79399879,32869.0,32868.0,3.17341391]
[1625763444573,3.05152913,32869.0,32868.0,3.17341391]
[1625763445547,3.05152913,32869.0,32868.0,1.96760429]
[1625763445998,1.79399879,32869.0,32868.0,3.17193835]
[1625763447290,3.05142437,32869.0,32868.0,1.96760429]
[1625763449157,3.05142437,32869.0,32868.0,3.17060738]
[1625763450807,3.05142437,32869.0,32868.0,1.96760429]
[1625763452684,4.48847207,32869.0,32868.0,1.96760429]
[1625763453810,4.48847207,32869.0,32868.0,0.93148236]
[1625763454034,4.48847207,32869.0,32868.0,1.96315385]
[1625763454559,4.48847207,32869.0,32868.0,0.93148236]
[1625763457417,4.48847207,32869.0,32868.0,1.96264683]
[1625763458163,3.05142437,32869.0,32868.0,1.96264683]
[1625763458989,3.59043159,32869.0,32868.0,2.47806525]
[1625763459967,2.33300601,32869.0,32868.0,3.68032834]
[1625763461243,3.59043831,32869.0,32868.0,3.68032834]
[1625763462973,2.33300601,32869.0,32868.0,3.68032834]
[1625763463271,3.59040706,32869.0,32868.0,3.68032834]
[1625763464023,3.59040706,32869.0,32868.0,2.47806525]
[1625763464173,3.59040706,32869.0,32868.0,3.67958775]
[1625763464773,2.33300601,32869.0,32868.0,3.67958775]
[1625763470333,7.65620601,32869.0,32868.0,3.67958775]
[1625763478741,7.65620601,32869.0,32868.0,2.47806525]
[1625763478742,8.91350568,32869.0,32868.0,2.47806525]
[1625763479495,10.35053022,32869.0,32868.0,0.75599386]
[1625763479870,10.35053022,32869.0,32868.0,0.24057544]
[1625763480171,11.96805876,32869.0,32868.0,0.24057544]
[1625763482947,11.96805876,32869.0,32866.0,0.25471285]
[1625763483249,4.49471325,32867.0,32866.0,0.25471285]
[1625763483998,6.11275314,32867.0,32866.0,0.25471285]
[1625763484225,6.11275314,32867.0,32865.0,0.68543254]
[1625763484524,4.49480329,32866.0,32865.0,0.68543254]
[1625763484826,4.73537873,32866.0,32865.0,0.68543254]
[1625763486704,4.73537873,32866.0,32864.0,0.68225152]
[1625763486855,4.97595417,32866.0,32864.0,0.68225152]
[1625763487006,0.48115088,32866.0,32865.0,0.68173765]
[1625763487157,4.9745954,32866.0,32865.0,0.68173765]
[1625763488433,3.53674347,32866.0,32865.0,1.70354206]
[1625763488733,3.53674347,32866.0,32865.0,2.89540243]
[1625763488885,2.27860057,32866.0,32865.0,2.89540243]
[1625763491061,2.27860057,32866.0,32865.0,4.25745968]
[1625763492187,1.2001667,32866.0,32865.0,4.25745968]
[1625763492637,2.27845677,32866.0,32865.0,4.25745968]
[1625763493615,1.2001667,32866.0,32865.0,4.25745968]
[1625763497896,0.48115088,32866.0,32865.0,4.25745968]
[1625763499171,0.84068473,32866.0,32865.0,4.25745968]
[1625763499770,0.35953385,32866.0,32865.0,4.25745968]
[1625763499921,0.35952411,32867.0,32865.0,5.78912748]
[1625763500220,0.35952411,32867.0,32866.0,4.25673558]
[1625763500820,0.35952411,32867.0,32866.0,4.49731102]
[1625763501571,0.35949766,32868.0,32866.0,4.49731102]
[1625763501873,6.04206002,32869.0,32867.0,4.25298726]
[1625763502025,6.40130975,32869.0,32868.0,4.25163381]
[1625763502172,6.40130975,32869.0,32868.0,4.56858381]
[1625763502322,7.12010934,32869.0,32868.0,4.56858381]
[1625763502773,6.04199959,32869.0,32868.0,4.56858381]
[1625763502924,6.04199959,32869.0,32868.0,4.80915925]
[1625763503674,0.71879959,32869.0,32868.0,4.80915925]
[1625763504275,0.35945929,32869.0,32868.0,9.63685925]
[1625763504727,1.437436,32872.0,32868.0,11.16606868]
[1625763504876,0.3594174,32872.0,32871.0,0.24057544]
[1625763505026,0.35941618,32873.0,32871.0,4.48885475]
[1625763505328,0.35923417,32874.0,32872.0,4.2475146]
[1625763505629,0.35923417,32874.0,32873.0,4.24714865]
[1625763505777,0.59979067,32875.0,32873.0,4.24714865]
[1625763506077,0.59979067,32875.0,32874.0,4.24758463]
[1625763506529,0.24057544,32875.0,32874.0,4.24758463]
[1625763506978,0.24057544,32875.0,32874.0,4.48816007]
[1625763508710,0.24057544,32875.0,32874.0,6.01507766]
[1625763509008,0.24057544,32875.0,32874.0,4.48816007]
[1625763520796,0.24057544,32875.0,32874.0,3.12893299]
[1625763522599,0.24057544,32875.0,32874.0,1.93960929]
[1625763523202,0.24057544,32875.0,32874.0,0.92018898]
[1625763523351,0.24057544,32875.0,32874.0,0.24057544]
[1625763523352,0.77780544,32875.0,32874.0,0.24057544]
[1625763523652,0.24057544,32875.0,32874.0,0.24057544]
[1625763523951,0.95654758,32875.0,32874.0,0.24057544]
[1625763524703,0.24057544,32875.0,32874.0,0.24057544]
[1625763524854,0.95654967,32875.0,32874.0,0.24057544]
[1625763525002,1.19712511,32875.0,32872.0,0.50802906]
[1625763525153,1.19712511,32875.0,32872.0,0.16934302]
[1625763525304,0.17914486,32873.0,32872.0,0.16934302]
[1625763525603,0.53725577,32873.0,32872.0,0.16934302]
[1625763525848,0.53725408,32874.0,32872.0,0.5076603]
[1625763526313,1.01833892,32875.0,32873.0,0.50719332]
[1625763526599,0.17912434,32874.0,32873.0,0.16906444]
[1625763526732,0.53720381,32874.0,32872.0,0.50751856]
[1625763527257,1.0184059,32875.0,32873.0,0.50767437]
[1625763527556,0.66029554,32875.0,32874.0,0.50745465]
[1625763527861,0.48115088,32875.0,32874.0,0.50745465]
[1625763528156,0.66027287,32875.0,32874.0,0.16915155]
[1625763529133,0.66027287,32875.0,32874.0,0.3381969]
[1625763529134,0.48115088,32875.0,32874.0,0.3381969]
[1625763529369,0.48115088,32875.0,32873.0,0.67639381]
[1625763529959,0.48115088,32875.0,32874.0,0.33822963]
[1625763530424,0.48115088,32875.0,32873.0,0.67639381]
[1625763531535,0.48115088,32875.0,32874.0,0.33829752]
[1625763531834,0.48115088,32875.0,32874.0,0.50745082]
[1625763532135,0.48115088,32875.0,32874.0,0.33829752]
[1625763532286,0.48115088,32875.0,32874.0,1.69074303]
[1625763532628,0.48115088,32875.0,32874.0,2.87338782]
[1625763534091,0.48115088,32875.0,32874.0,4.22379386]
[1625763534585,0.48115088,32875.0,32874.0,2.87338782]
[1625763534855,0.48115088,32875.0,32874.0,1.69074303]
[1625763535436,0.48115088,32875.0,32874.0,2.87369726]
[1625763542195,0.24057544,32875.0,32874.0,2.87369726]
[1625763543322,0.24057544,32875.0,32874.0,4.22592715]
[1625763543475,0.24057544,32875.0,32874.0,2.87369726]
[1625763544823,0.53702417,32881.0,32874.0,2.87369726]
[1625763544979,0.48115088,32882.0,32874.0,4.22503293]
[1625763545123,0.48115088,32882.0,32881.0,0.48115088]
[1625763545274,0.48115088,32882.0,32881.0,1.50463793]
[1625763545429,0.48115088,32882.0,32881.0,2.51723969]
[1625763548582,0.48115088,32882.0,32881.0,1.50463793]
[1625763548730,0.48115088,32882.0,32881.0,2.51750796]
[1625763550682,0.48115088,32882.0,32881.0,6.52950796]
[1625763553010,0.08970999,32883.0,32881.0,6.52950796]
[1625763553160,0.08970999,32883.0,32882.0,0.24057544]
[1625763553313,0.08,32884.0,32882.0,3.11009115]
[1625763553610,0.08,32884.0,32883.0,2.86890393]
[1625763554210,0.26899312,32887.0,32883.0,2.86890393]
[1625763554362,0.26899312,32887.0,32883.0,4.36890393]
[1625763554546,0.16341316,32889.0,32886.0,2.52519437]
[1625763554687,0.17919094,32894.0,32887.0,0.5]
[1625763554815,0.0896774,32897.0,32888.0,5.71577497]
[1625763554963,0.0896774,32897.0,32895.0,1.00887551]
[1625763555114,0.0896774,32897.0,32895.0,1.29386551]
[1625763555264,0.62717735,32899.0,32896.0,1.97088081]
[1625763555563,0.62714433,32901.0,32898.0,1.00785779]
[1625763555863,0.62714433,32901.0,32897.0,1.0]
[1625763555864,0.62712011,32902.0,32900.0,1.00750877]
[1625763556013,0.26888594,32903.0,32900.0,1.00750877]
[1625763556315,0.35821622,32904.0,32902.0,1.00658669]
[1625763556316,0.08968489,32904.0,32902.0,1.00658669]
[1625763556467,0.26840075,32906.0,32903.0,0.5861674]
[1625763556766,0.08952648,32906.0,32903.0,0.5861674]
[1625763556916,0.26843126,32906.0,32903.0,0.5861674]
[1625763557069,0.26843126,32906.0,32904.0,0.0837523]
[1625763557216,0.26843126,32906.0,32905.0,0.48115088]
[1625763557669,0.53654507,32906.0,32905.0,0.48115088]
[1625763557969,0.62608849,32906.0,32905.0,0.48115088]
[1625763558120,1.07256995,32908.0,32905.0,0.48115088]
[1625763558420,0.24057544,32909.0,32905.0,0.48115088]
[1625763558421,0.08944862,32906.0,32905.0,0.48115088]
[1625763558570,0.26816625,32906.0,32905.0,0.48115088]
[1625763559322,0.62548853,32906.0,32905.0,0.48115088]
[1625763559632,0.35732228,32906.0,32905.0,0.48115088]
[1625763559938,1.07163052,32907.0,32905.0,0.48115088]
[1625763560705,0.24057544,32909.0,32905.0,0.48115088]
[1625763560706,1.07083784,32908.0,32905.0,0.48115088]
[1625763560989,1.07084007,32907.0,32905.0,0.48115088]
[1625763561131,1.07100133,32906.0,32905.0,0.48115088]
[1625763561276,1.31157677,32906.0,32905.0,0.48115088]
[1625763561801,1.31157677,32906.0,32897.0,0.58624591]
[1625763561951,0.62522027,32901.0,32896.0,0.24057544]
[1625763562100,0.94808027,32901.0,32896.0,0.24057544]
[1625763562250,0.08942098,32900.0,32896.0,0.24057544]
[1625763562550,0.08941912,32901.0,32896.0,0.32436931]
[1625763562702,0.26804386,32902.0,32896.0,0.24057544]
[1625763563001,0.26801585,32901.0,32896.0,0.24057544]
[1625763563153,0.24057544,32897.0,32896.0,0.24057544]
[1625763565179,0.48115088,32897.0,32896.0,0.24057544]
[1625763570057,0.57049134,32897.0,32896.0,0.24057544]
[1625763570359,0.48115088,32897.0,32896.0,0.24057544]
[1625763575463,0.48115088,32897.0,32896.0,0.3242534]
[1625763575910,0.48115088,32897.0,32896.0,0.24057544]
[1625763576210,0.48115088,32897.0,32896.0,0.49158766]
[1625763576509,0.48115088,32897.0,32896.0,0.32424618]
[1625763577787,0.48115088,32897.0,32896.0,0.49153259]
[1625763578537,0.48115088,32897.0,32896.0,0.32424618]
[1625763578837,0.48115088,32897.0,32896.0,0.24057544]
[1625763579436,0.48115088,32897.0,32896.0,0.324185]
[1625763580112,0.48115088,32897.0,32896.0,0.49105743]
[1625763580264,0.48115088,32897.0,32896.0,0.324185]
[1625763580563,0.48115088,32897.0,32896.0,0.24057544]
[1625763581014,0.48115088,32897.0,32896.0,0.49061784]
[1625763581540,0.24057544,32899.0,32896.0,0.32392291]
[1625763581764,0.24057544,32899.0,32896.0,0.82375927]
[1625763583266,0.24057544,32899.0,32898.0,0.24057544]
[1625763583418,0.24057544,32899.0,32898.0,0.51506544]
[1625763587775,0.24057544,32899.0,32898.0,0.24057544]
[1625763588523,0.56376544,32899.0,32898.0,0.24057544]
[1625763592503,0.56376544,32899.0,32895.0,0.24903502]
[1625763592803,0.56376544,32899.0,32892.0,0.08304518]
[1625763592953,1.18844633,32899.0,32890.0,0.58116254]
[1625763593261,0.26790214,32897.0,32889.0,0.58165309]
[1625763593402,0.48115088,32890.0,32889.0,0.58165309]
[1625763593554,5.50070088,32890.0,32889.0,0.58165309]
[1625763594153,5.50070088,32890.0,32889.0,0.33237319]
[1625763594304,5.50070088,32890.0,32888.0,0.24935559]
[1625763594454,5.50070088,32890.0,32887.0,0.4900753]
[1625763594605,5.50070088,32890.0,32887.0,0.40690868]
[1625763594753,5.50070088,32890.0,32887.0,0.24057544]
[1625763595506,5.59011825,32890.0,32887.0,0.24057544]
[1625763595808,5.76878172,32890.0,32887.0,0.24057544]
[1625763596105,6.12593296,32890.0,32887.0,0.24057544]
[1625763596255,0.26809089,32889.0,32887.0,0.24057544]
[1625763596577,0.48115088,32890.0,32887.0,0.24057544]
[1625763597156,0.48115088,32890.0,32888.0,0.08287577]
[1625763597605,0.48115088,32890.0,32887.0,0.3233475]
[1625763597905,0.48115088,32890.0,32887.0,0.24057544]
[1625763598062,0.70372088,32890.0,32887.0,0.24057544]
[1625763598358,0.97192132,32890.0,32887.0,0.24057544]
[1625763598505,5.30712132,32890.0,32887.0,0.24057544]
[1625763598656,5.66442511,32890.0,32887.0,0.24057544]
[1625763598881,5.30712132,32890.0,32887.0,0.24057544]
[1625763599180,5.66443867,32890.0,32884.0,0.08291459]
[1625763599482,0.24057544,32885.0,32882.0,0.58130663]
[1625763599781,0.24057544,32885.0,32881.0,4.5018992]
[1625763600382,0.24057544,32885.0,32881.0,4.83422567]
[1625763600680,0.24057544,32885.0,32882.0,0.24921515]
[1625763600985,0.24057544,32885.0,32882.0,0.08307172]
[1625763601359,0.24057544,32884.0,32882.0,0.58172439]
[1625763601658,0.24057544,32884.0,32882.0,0.08307172]
[1625763601807,0.24057544,32884.0,32881.0,4.83428988]
[1625763602108,0.24057544,32884.0,32882.0,0.58158408]
[1625763602710,0.24057544,32884.0,32883.0,0.08313393]
[1625763603008,0.24057544,32884.0,32883.0,0.24937335]
[1625763603308,0.24057544,32884.0,32883.0,0.5822838]
[1625763603537,0.24057544,32884.0,32883.0,0.24937335]
[1625763604061,0.24057544,32884.0,32883.0,0.08313393]
[1625763604361,0.24057544,32884.0,32883.0,0.49986689]
[1625763604811,0.24057544,32884.0,32883.0,1.49894806]
[1625763605155,0.24057544,32884.0,32883.0,0.49964935]
[1625763605311,0.24057544,32884.0,32883.0,0.83318686]
[1625763605412,0.24057544,32884.0,32883.0,1.0737623]
[1625763605562,0.24057544,32884.0,32883.0,0.82429108]
[1625763605712,0.24057544,32884.0,32883.0,1.07437212]
[1625763606013,0.24057544,32884.0,32883.0,0.74083461]
[1625763606707,0.24057544,32884.0,32883.0,0.49082125]
[1625763606989,0.24057544,32884.0,32883.0,0.82443061]
[1625763607330,0.24057544,32884.0,32883.0,1.09092534]
[1625763607445,0.24057544,32884.0,32883.0,1.09073954]
[1625763608640,0.24057544,32884.0,32883.0,1.42454683]
[1625763608940,0.24057544,32884.0,32883.0,1.09073954]
[1625763610298,0.24057544,32884.0,32883.0,2.09247432]
[1625763610615,0.24057544,32884.0,32883.0,1.09073954]
[1625763610746,0.24057544,32884.0,32883.0,2.09322899]
[1625763611573,0.24057544,32884.0,32883.0,3.26205114]
[1625763611723,0.24057544,32884.0,32883.0,2.09322899]
[1625763612472,0.24057544,32884.0,32883.0,3.26354191]
[1625763613223,0.24057544,32884.0,32883.0,2.09322899]
[1625763613676,0.24057544,32884.0,32883.0,3.26413975]
[1625763614279,0.24057544,32884.0,32883.0,2.09322899]
[1625763614873,0.24057544,32884.0,32883.0,3.92824771]
[1625763616113,0.24057544,32884.0,32883.0,2.76050852]
[1625763616985,0.24057544,32884.0,32883.0,1.75801907]
[1625763617144,0.24057544,32884.0,32883.0,1.42449025]
[1625763617293,0.24057544,32884.0,32883.0,1.07458025]
[1625763617447,0.24057544,32884.0,32883.0,0.74082954]
[1625763617725,0.24057544,32884.0,32883.0,1.40785584]
[1625763617892,0.24057544,32884.0,32883.0,2.40802001]
[1625763618851,0.24057544,32884.0,32883.0,3.57380872]
[1625763619404,0.24057544,32884.0,32883.0,4.90602252]
[1625763619687,0.24057544,32884.0,32883.0,3.57380872]
[1625763619837,0.24057544,32884.0,32883.0,4.90641052]
[1625763620324,0.24057544,32884.0,32883.0,3.57380872]
[1625763620618,0.24057544,32884.0,32883.0,2.40802001]